fUSD/lending_fUSD_20240214
["ID","MTS","AMOUNT","RATE_DAILY","PERIOD"]
[313994854,1707918704501,-500.0,0.00038082,2]
[313994855,1707918704510,-688.02,0.00038082,2]
[313994856,1707918704520,-500.0,0.00038082,2]
[313994857,1707918704529,-500.0,0.00038082,2]
[313994858,1707918704538,-1651.95,0.00038082,2]
[313994859,1707918704547,-525.42,0.00038082,2]
[313994860,1707918704556,-500.0,0.00038082,2]
[313994861,1707918704567,-769.2,0.00038082,2]
[313994862,1707918704576,-500.0,0.00038082,2]
[313994863,1707918704586,-500.0,0.00038082,2]
[313994864,1707918704595,-500.0,0.00038082,2]
[313994865,1707918704605,-500.0,0.00038082,2]
[313994866,1707918704614,-500.0,0.00038082,2]
[313994867,1707918704624,-994.52,0.00038082,2]
[313994868,1707918704634,-1207.68,0.00038082,2]
[313994869,1707918704647,-644.98,0.00038082,2]
[313994870,1707918704656,-500.0,0.00038082,2]
[313994871,1707918704666,-1105.47,0.00038082,2]
[313994872,1707918704675,-899.54,0.00038082,2]
[313994873,1707918704684,-500.0,0.00038082,2]
[313994874,1707918704694,-500.0,0.00038082,2]
[313994875,1707918704703,-686.26,0.00038082,2]
[313994876,1707918704712,-859.98,0.00038082,2]
[313994877,1707918704724,-964.36,0.00038082,2]
[313994878,1707918704734,-500.0,0.00038082,2]
[313994879,1707918704743,-509.76,0.00038082,2]
[313994880,1707918704752,-1087.88,0.00038082,2]
[313994881,1707918704761,-885.89,0.00038082,2]
[313994882,1707918704770,-500.0,0.00038082,2]
[313994883,1707918704780,-1467.73,0.00038082,2]
[313994884,1707918704789,-799.09,0.00038082,2]
[313994885,1707918704798,-500.0,0.00038082,2]
[313994886,1707918704808,-500.0,0.00038082,2]
[313994887,1707918704817,-542.62,0.00038082,2]
[313994888,1707918704826,-873.25,0.00038082,2]
[313994889,1707918704834,-1208.48,0.00038082,2]
[313994890,1707918704843,-595.65,0.00038082,2]
[313994891,1707918704852,-1125.43,0.00038082,2]
[313994892,1707918704861,-500.0,0.00038082,2]
[313994893,1707918704870,-640.41,0.00038082,2]
[313994894,1707918704879,-1575.86,0.00038082,2]
[313994895,1707918704888,-462.29060197,0.00038082,2]
[313994896,1707918704897,-609.63,0.00038082,2]
[313994897,1707918704906,-500.0,0.00038082,2]
[313994898,1707918704915,-738.2,0.00038082,2]
[313994899,1707918704924,-553.78,0.00038082,2]
[313994900,1707918704933,-585.93,0.00038082,2]
[313994901,1707918704942,-863.16,0.00038082,2]
[313994902,1707918704952,-1318.95,0.00038082,2]
[313994903,1707918704962,-190.26325073,0.00038082,2]
[313994904,1707918704971,-632.49,0.00038082,2]
[313994905,1707918704980,-878.83,0.00038082,2]
[313994906,1707918704990,-500.0,0.00038082,2]
[313994907,1707918704999,-837.17,0.00038082,2]
[313994908,1707918705008,-659.26,0.00038082,2]
[313994909,1707918705018,-1230.61,0.00038082,2]
[313994910,1707918705027,-500.0,0.00038082,2]
[313994911,1707918705036,-500.0,0.00038082,2]
[313994912,1707918705045,-500.0,0.00038082,2]
[313994913,1707918705054,-1303.9,0.00038082,2]
[313994914,1707918705064,-500.0,0.00038082,2]
[313994915,1707918705074,-1302.02,0.00038082,2]
[313994916,1707918705083,-695.14,0.00038082,2]
[313994917,1707918705092,-1326.61,0.00038082,2]
[313994918,1707918705102,-997.21,0.00038082,2]
[313994919,1707918705112,-500.0,0.00038082,2]
[313994920,1707918705121,-500.0,0.00038082,2]
[313994921,1707918705133,-500.0,0.00038082,2]
[313994922,1707918705143,-500.0,0.00038082,2]
[313994923,1707918705152,-1210.25,0.00038082,2]
[313994924,1707918705162,-1036.2,0.00038082,2]
[313994925,1707918705172,-500.0,0.00038082,2]
[313994926,1707918705182,-500.0,0.00038082,2]
[313994927,1707918705192,-500.0,0.00038082,2]
[313994928,1707918705202,-500.0,0.00038082,2]
[313994929,1707918705212,-1554.02,0.00038082,2]
[313994930,1707918705221,-794.8,0.00038082,2]
[313994931,1707918705231,-500.0,0.00038082,2]
[313994932,1707918705242,-825.62,0.00038082,2]
[313994933,1707918705251,-639.39,0.00038082,2]
[313994934,1707918705261,-1028.27,0.00038082,2]
[313994935,1707918705271,-500.0,0.00038082,2]
[313994936,1707918705282,-500.0,0.00038082,2]
[313994937,1707918705292,-500.0,0.00038082,2]
[313994938,1707918705303,-500.0,0.00038082,2]
[313994939,1707918705314,-1356.73,0.00038082,2]
[313994940,1707918705323,-1099.78,0.00038082,2]
[313994941,1707918705334,-1213.75,0.00038082,2]
[313994942,1707918705345,-995.39,0.00038082,2]
[313994943,1707918705355,-500.0,0.00038082,2]
[313994944,1707918705364,-646.45,0.00038082,2]
[313994945,1707918705374,-1321.75,0.00038082,2]
[313994946,1707918705384,-500.0,0.00038082,2]
[313994947,1707918705394,-1084.13,0.00038082,2]
[313994948,1707918705403,-1094.34,0.00038082,2]
[313994949,1707918705412,-500.0,0.00038082,7]
[313994950,1707918705422,-529.24,0.00038082,2]
[313994951,1707918705431,-250.0,0.00038082,2]
[313994952,1707918705441,-500.0,0.00038082,2]
[313994953,1707918705450,-500.0,0.00038082,2]
[313994954,1707918705459,-1288.85,0.00038082,2]
[313994955,1707918705469,-500.0,0.00038082,2]
[313994956,1707918705640,-500.0,0.00038082,2]
[313994957,1707918705649,-613.15,0.00038082,2]
[313994958,1707918705659,-740.98,0.00038082,2]
[313994959,1707918705669,-500.0,0.00038082,2]
[313994960,1707918705678,-500.0,0.00038082,2]
[313994961,1707918705687,-918.21,0.00038082,2]
[313994962,1707918705697,-790.84,0.00038082,2]
[313994963,1707918705707,-1413.05,0.00038082,2]
[313994964,1707918705716,-1413.61,0.00038082,2]
[313994965,1707918705725,-754.17,0.00038082,2]
[313994966,1707918705735,-768.11,0.00038082,2]
[313994967,1707918705744,-500.0,0.00038082,2]
[313994968,1707918705753,-1147.8,0.00038082,2]
[313994969,1707918705763,-500.0,0.00038082,2]
[313994970,1707918705771,-500.0,0.00038082,2]
[313994971,1707918705781,-884.99,0.00038082,2]
[313994972,1707918705790,-1363.27,0.00038082,2]
[313994973,1707918705800,-944.25,0.00038082,2]
[313994974,1707918705809,-500.0,0.00038082,2]
[313994975,1707918705818,-500.0,0.00038082,2]
[313994976,1707918705828,-516.45,0.00038082,2]
[313994977,1707918705837,-1338.49,0.00038082,2]
[313994978,1707918705846,-500.0,0.00038082,2]
[313994979,1707918705856,-721.42,0.00038082,2]
[313994980,1707918705865,-500.0,0.00038082,2]
[313994981,1707918705874,-1332.5,0.00038082,2]
[313994982,1707918705884,-617.74,0.00038082,2]
[313994983,1707918705893,-500.0,0.00038082,2]
[313994984,1707918705903,-1122.42,0.00038082,2]
[313994985,1707918705913,-500.0,0.00038082,2]
[313994986,1707918705922,-500.0,0.00038082,2]
[313994987,1707918705931,-812.15,0.00038082,2]
[313994988,1707918705940,-1122.49,0.00038082,2]
[313994989,1707918705950,-2014.14,0.00038082,2]
[313994990,1707918705959,-500.0,0.00038082,2]
[313994991,1707918705969,-500.0,0.00038082,2]
[313994992,1707918705978,-636.6,0.00038082,2]
[313994993,1707918705988,-500.0,0.00038082,2]
[313994994,1707918705998,-993.94,0.00038082,2]
[313994995,1707918706007,-500.0,0.00038082,2]
[313994996,1707918706017,-500.0,0.00038082,2]
[313994997,1707918706027,-667.57,0.00038082,2]
[313994998,1707918706036,-504.7,0.00038082,2]
[313994999,1707918706046,-500.0,0.00038082,2]
[313995000,1707918706055,-500.0,0.00038082,2]
[313995001,1707918706065,-500.0,0.00038082,2]
[313995002,1707918706074,-1764.29,0.00038082,2]
[313995003,1707918706084,-778.77,0.00038082,2]
[313995004,1707918706093,-2191.16,0.00038082,2]
[313995005,1707918706102,-591.81,0.00038082,2]
[313995006,1707918706112,-500.0,0.00038082,2]
[313995007,1707918706122,-500.0,0.00038082,2]
[313995008,1707918706132,-500.0,0.00038082,2]
[313995009,1707918706142,-1816.87,0.00038082,2]
[313995010,1707918706152,-796.54,0.00038082,2]
[313995011,1707918706162,-509.57,0.00038082,2]
[313995012,1707918706171,-510.03,0.00038082,2]
[313995013,1707918706180,-711.35,0.00038082,2]
[313995014,1707918706190,-500.0,0.00038082,2]
[313995015,1707918706199,-500.0,0.00038082,2]
[313995016,1707918706208,-757.25,0.00038082,2]
[313995017,1707918706218,-1499.13,0.00038082,2]
[313995018,1707918706227,-500.0,0.00038082,2]
[313995019,1707918706237,-500.0,0.00038082,2]
[313995020,1707918706247,-566.41,0.00038082,2]
[313995021,1707918706256,-706.01,0.00038082,2]
[313995022,1707918706266,-1377.12,0.00038082,2]
[313995023,1707918706276,-500.0,0.00038082,2]
[313995024,1707918706286,-1227.9,0.00038082,2]
[313995025,1707918706295,-996.41,0.00038082,2]
[313995026,1707918706304,-644.19,0.00038082,2]
[313995027,1707918706313,-2029.29,0.00038082,2]
[313995028,1707918706324,-1069.18,0.00038082,2]
[313995029,1707918706333,-514.5,0.00038082,2]
[313995030,1707918706342,-1406.43,0.00038082,2]
[313995031,1707918706352,-377.41131641,0.00038082,2]
[313995032,1707918706361,-1046.25,0.00038082,2]
[313995033,1707918706371,-500.0,0.00038082,2]
[313995034,1707918706380,-1134.09,0.00038082,2]
[313995035,1707918706390,-500.0,0.00038082,2]
[313995036,1707918706399,-729.05,0.00038082,2]
[313995037,1707918706408,-622.27,0.00038082,2]
[313995038,1707918706418,-500.0,0.00038082,2]
[313995039,1707918706427,-500.0,0.00038082,2]
[313995040,1707918706436,-500.0,0.00038082,2]
[313995041,1707918706445,-500.0,0.00038082,2]
[313995042,1707918706454,-1071.7,0.00038082,2]
[313995043,1707918706463,-500.0,0.00038082,2]
[313995044,1707918706473,-762.21,0.00038082,2]
[313995045,1707918706482,-500.0,0.00038082,2]
[313995046,1707918706492,-517.99,0.00038082,2]
[313995047,1707918706501,-1842.99,0.00038082,2]
[313995048,1707918706510,-500.0,0.00038082,2]
[313995049,1707918706520,-500.0,0.00038082,2]
[313995050,1707918706530,-500.0,0.00038082,2]
[313995051,1707918706539,-714.9,0.00038082,2]
[313995052,1707918706548,-500.0,0.00038082,2]
[313995053,1707918706558,-500.0,0.00038082,2]
[313995054,1707918706567,-505.27,0.00038082,2]
[313995055,1707918706577,-535.65429394,0.00038082,2]
[313995056,1707918706586,-1657.14,0.00038082,2]
[313995057,1707918706595,-609.86,0.00038082,2]
[313995058,1707918706605,-500.0,0.00038082,2]
[313995059,1707918706615,-500.0,0.00038082,2]
[313995060,1707918706624,-500.0,0.00038082,2]
[313995061,1707918706634,-500.0,0.00038082,2]
[313995062,1707918706646,-500.0,0.00038082,2]
[313995063,1707918706655,-500.0,0.00038082,2]
[313995064,1707918706664,-1211.81,0.00038082,2]
[313995065,1707918706674,-500.0,0.00038082,2]
[313995066,1707918706684,-500.0,0.00038082,2]
[313995067,1707918706694,-500.0,0.00038082,2]
[313995068,1707918706702,-521.97,0.00038082,2]
[313995069,1707918706711,-500.0,0.00038082,2]
[313995070,1707918706721,-500.0,0.00038082,2]
[313995071,1707918706731,-1086.38,0.00038082,2]
[313995072,1707918706739,-636.91,0.00038082,2]
[313995073,1707918706748,-1000.0,0.00038082,7]
[313995074,1707918706757,-500.0,0.00038082,2]
[313995075,1707918706767,-500.0,0.00038082,2]
[313995076,1707918706776,-500.0,0.00038082,2]
[313995077,1707918706785,-590.73,0.00038082,2]
[313995078,1707918706794,-846.95,0.00038082,2]
[313995079,1707918706803,-500.0,0.00038082,2]
[313995080,1707918706813,-500.0,0.00038082,2]
[313995081,1707918706830,-500.0,0.00038082,2]
[313995082,1707918706846,-500.0,0.00038082,2]
[313995083,1707918706864,-551.44,0.00038082,2]
[313995084,1707918706881,-608.15,0.00038082,2]
[313995085,1707918706898,-500.0,0.00038082,2]
[313995086,1707918706917,-500.0,0.00038082,2]
[313995087,1707918706932,-524.06,0.00038082,2]
[313995088,1707918706952,-797.65,0.00038082,2]
[313995089,1707918706969,-500.0,0.00038082,2]
[313995090,1707918706988,-500.0,0.00038082,2]
[313995091,1707918707009,-640.14,0.00038082,2]
[313995092,1707918707023,-500.0,0.00038082,2]
[313995093,1707918707040,-261.2990017,0.00038082,2]
[313995094,1707918707060,-789.73,0.00038082,2]
[313995095,1707918707074,-500.0,0.00038082,2]
[313995096,1707918707091,-610.3,0.00038082,2]
[313995097,1707918707107,-500.0,0.00038082,2]
[313995098,1707918707123,-903.49,0.00038082,2]
[313995099,1707918707139,-650.72,0.00038082,2]
[313995100,1707918707154,-500.0,0.00038082,2]
[313995101,1707918707170,-500.0,0.00038082,2]
[313995102,1707918707186,-500.0,0.00038082,2]
[313995103,1707918707202,-500.0,0.00038082,2]
[313995104,1707918707218,-500.0,0.00038082,2]
[313995105,1707918707233,-500.0,0.00038082,2]
[313995106,1707918707247,-500.0,0.00038082,2]
[313995107,1707918707263,-2051.57,0.00038082,2]
[313995108,1707918707279,-500.0,0.00038082,2]
[313995109,1707918707295,-845.58,0.00038082,2]
[313995110,1707918707310,-500.0,0.00038082,2]
[313995111,1707918707326,-500.0,0.00038082,2]
[313995112,1707918707341,-1484.98,0.00038082,2]
[313995113,1707918707357,-882.95,0.00038082,2]
[313995114,1707918707372,-500.0,0.00038082,2]
[313995115,1707918707387,-500.0,0.00038082,2]
[313995116,1707918707402,-500.0,0.00038082,2]
[313995117,1707918707416,-500.0,0.00038082,2]
[313995118,1707918707430,-709.47,0.00038082,2]
[313995119,1707918707445,-1266.63,0.00038082,2]
[313995120,1707918707460,-500.0,0.00038082,2]
[313995121,1707918707475,-750.02,0.00038082,2]
[313995122,1707918707489,-500.0,0.00038082,2]
[313995123,1707918707503,-725.91,0.00038082,2]
[313995124,1707918707518,-676.49,0.00038082,2]
[313995125,1707918707533,-500.0,0.00038082,2]
[313995126,1707918707547,-1189.99,0.00038082,2]
[313995127,1707918707562,-1081.42,0.00038082,2]
[313995128,1707918707578,-1392.58,0.00038082,2]
[313995129,1707918707593,-545.48,0.00038082,2]
[313995130,1707918707607,-4833.85,0.00038082,2]
[313995131,1707918707622,-500.0,0.00038082,2]
[313995132,1707918707637,-995.85,0.00038082,2]
[313995133,1707918707652,-258.96,0.00038082,2]
[313995134,1707918707666,-500.0,0.00038082,2]
[313995135,1707918707680,-599.50621364,0.00038082,2]
[313995136,1707918707694,-5617.47,0.00038082,2]
[313995137,1707918707708,-500.0,0.00038082,2]
[313995138,1707918707723,-874.25,0.00038082,2]
[313995139,1707918707737,-654.98,0.00038082,2]
[313995140,1707918707751,-500.0,0.00038082,2]
[313995141,1707918707766,-500.0,0.00038082,2]
[313995142,1707918707782,-678.96,0.00038082,2]
[313995143,1707918707796,-1141.89,0.00038082,2]
[313995144,1707918707810,-500.0,0.00038082,2]
[313995145,1707918707825,-500.0,0.00038082,2]
[313995146,1707918707840,-530.39,0.00038082,2]
[313995147,1707918707855,-500.0,0.00038082,2]
[313995148,1707918707870,-500.0,0.00038082,2]
[313995149,1707918707883,-500.0,0.00038082,2]
[313995150,1707918707897,-500.0,0.00038082,2]
[313995151,1707918707911,-500.0,0.00038082,2]
[313995152,1707918707925,-11536.61,0.00038082,2]
[313995153,1707918707939,-500.0,0.00038082,2]
[313995154,1707918707954,-517.23,0.00038082,2]
[313995155,1707918707970,-500.0,0.00038082,2]
[313995156,1707918707985,-500.0,0.00038082,2]
[313995157,1707918708004,-574.60566981,0.00038082,2]
[313995158,1707918708018,-755.03,0.00038082,2]
[313995159,1707918708033,-500.0,0.00038082,2]
[313995160,1707918708047,-500.0,0.00038082,2]
[313995161,1707918708062,-11052.97,0.00038082,2]
[313995162,1707918708078,-826.33,0.00038082,2]
[313995163,1707918708093,-844.03,0.00038082,2]
[313995164,1707918708107,-6593.78,0.00038082,2]
[313995165,1707918708121,-500.0,0.00038082,2]
[313995166,1707918708135,-518.65,0.00038082,2]
[313995167,1707918708150,-1107.9,0.00038082,2]
[313995168,1707918708165,-500.0,0.00038082,2]
[313995169,1707918708180,-500.0,0.00038082,2]
[313995170,1707918708196,-1675.75,0.00038082,2]
[313995171,1707918708210,-500.0,0.00038082,2]
[313995172,1707918708226,-500.0,0.00038082,2]
[313995173,1707918708241,-589.43,0.00038082,2]
[313995174,1707918708257,-363.21361949,0.00038082,2]
[313995175,1707918708272,-577.93,0.00038082,2]
[313995176,1707918708289,-832.53,0.00038082,2]
[313995177,1707918708304,-500.0,0.00038082,2]
[313995178,1707918708318,-500.0,0.00038082,2]
[313995179,1707918708334,-731.74,0.00038082,2]
[313995180,1707918708349,-939.6,0.00038082,2]
[313995181,1707918708363,-618.79,0.00038082,2]
[313995182,1707918708379,-702.08,0.00038082,2]
[313995183,1707918708393,-500.0,0.00038082,2]
[313995184,1707918708408,-500.0,0.00038082,2]
[313995185,1707918708422,-1511.48,0.00038082,2]
[313995186,1707918708436,-500.0,0.00038082,2]
[313995187,1707918708451,-1556.11,0.00038082,2]
[313995188,1707918708465,-525.66,0.00038082,2]
[313995189,1707918708480,-500.0,0.00038082,2]
[313995190,1707918708494,-500.0,0.00038082,2]
[313995191,1707918708509,-500.0,0.00038082,2]
[313995192,1707918708523,-635.32,0.00038082,2]
[313995193,1707918708538,-730.57,0.00038082,2]
[313995194,1707918708552,-694.15,0.00038082,2]
[313995195,1707918708567,-500.0,0.00038082,2]
[313995196,1707918708583,-500.0,0.00038082,2]
[313995197,1707918708597,-512.15,0.00038082,2]
[313995198,1707918708610,-4300.1,0.00038082,2]
[313995199,1707918708625,-500.0,0.00038082,2]
[313995200,1707918708885,-553.65,0.00038082,2]
[313995201,1707918708903,-500.0,0.00038082,2]
[313995202,1707918708913,-1367.49,0.00038082,2]
[313995203,1707918708924,-1107.84,0.00038082,2]
[313995204,1707918708934,-797.14,0.00038082,2]
[313995205,1707918708943,-1628.57,0.00038082,2]
[313995206,1707918708954,-2703.32,0.00038082,2]
[313995207,1707918708964,-500.0,0.00038082,2]
[313995208,1707918708974,-500.0,0.00038082,2]
[313995209,1707918708985,-500.0,0.00038082,2]
[313995210,1707918708995,-1290.42,0.00038082,2]
[313995211,1707918709004,-500.0,0.00038082,2]
[313995212,1707918709014,-572.56,0.00038082,2]
[313995213,1707918709023,-2835.77,0.00038082,2]
[313995214,1707918709035,-499.99989506,0.00038082,2]
[313995215,1707918709045,-1120.47,0.00038082,2]
[313995216,1707918709055,-500.0,0.00038082,2]
[313995217,1707918709066,-500.0,0.00038082,2]
[313995218,1707918709076,-1443.05,0.00038082,2]
[313995219,1707918709086,-517.14,0.00038082,2]
[313995220,1707918709096,-500.0,0.00038082,2]
[313995221,1707918709106,-4292.73,0.00038082,2]
[313995222,1707918709116,-786.93,0.00038082,2]
[313995223,1707918709127,-1168.95,0.00038082,2]
[313995224,1707918709138,-500.0,0.00038082,2]
[313995225,1707918709147,-1720.24,0.00038082,2]
[313995226,1707918709157,-1074.02,0.00038082,2]
[313995227,1707918709168,-775.06,0.00038082,2]
[313995228,1707918709178,-500.0,0.00038082,2]
[313995229,1707918709188,-500.0,0.00038082,2]
[313995230,1707918709198,-500.0,0.00038082,2]
[313995231,1707918709208,-1078.87,0.00038082,2]
[313995232,1707918709217,-5058.48,0.00038082,2]
[313995233,1707918709227,-500.0,0.00038082,2]
[313995234,1707918709237,-766.12,0.00038082,2]
[313995235,1707918709247,-500.0,0.00038082,2]
[313995236,1707918709256,-500.0,0.00038082,2]
[313995237,1707918709266,-12071.62,0.00038082,2]
[313995238,1707918709277,-662.79,0.00038082,2]
[313995239,1707918709287,-1066.1,0.00038082,2]
[313995240,1707918709297,-500.0,0.00038082,2]
[313995241,1707918709307,-500.0,0.00038082,2]
[313995242,1707918709316,-500.0,0.00038082,2]
[313995243,1707918709326,-500.0,0.00038082,2]
[313995244,1707918709336,-2904.57,0.00038082,2]
[313995245,1707918709345,-520.35053196,0.00038082,2]
[313995246,1707918709355,-500.0,0.00038082,2]
[313995247,1707918709364,-500.0,0.00038082,2]
[313995248,1707918709373,-782.3,0.00038082,2]
[313995249,1707918709384,-500.0,0.00038082,2]
[313995250,1707918709393,-167.48465635,0.00038082,2]
[313995251,1707918709402,-246.23711737,0.00038082,2]
[313995252,1707918709412,-1683.81,0.00038082,2]
[313995253,1707918709421,-1071.21,0.00038082,2]
[313995254,1707918709432,-502.98,0.00038082,2]
[313995255,1707918709442,-500.0,0.00038082,2]
[313995256,1707918709451,-500.0,0.00038082,2]
[313995257,1707918709460,-4434.9,0.00038082,2]
[313995258,1707918709470,-1703.61,0.00038082,2]
[313995259,1707918709481,-501.61,0.00038082,2]
[313995260,1707918709490,-500.0,0.00038082,2]
[313995261,1707918709500,-4728.84,0.00038082,2]
[313995262,1707918709509,-5888.22,0.00038082,2]
[313995263,1707918709519,-520.65,0.00038082,2]
[313995264,1707918709528,-1473.33,0.00038082,2]
[313995265,1707918709538,-500.0,0.00038082,2]
[313995266,1707918709547,-758.6,0.00038082,2]
[313995267,1707918709557,-500.0,0.00038082,2]
[313995268,1707918709567,-2346.52,0.00038082,2]
[313995269,1707918709577,-812.43,0.00038082,2]
[313995270,1707918709586,-1129.6,0.00038082,2]
[313995271,1707918709596,-26483.9,0.00038082,2]
[313995272,1707918709605,-597.23,0.00038082,2]
[313995273,1707918709616,-500.0,0.00038082,2]
[313995274,1707918709626,-500.0,0.00038082,2]
[313995275,1707918709637,-6954.93,0.00038082,2]
[313995276,1707918709648,-15190.55,0.00038082,2]
[313995277,1707918709657,-599.5,0.00038082,2]
[313995278,1707918709667,-500.0,0.00038082,2]
[313995279,1707918709678,-3242.2,0.00038082,2]
[313995280,1707918709687,-500.0,0.00038082,2]
[313995281,1707918709697,-648.21150082,0.00038082,2]
[313995282,1707918709706,-500.0,0.00038082,2]
[313995283,1707918709716,-559.19,0.00038082,2]
[313995284,1707918709727,-974.31,0.00038082,2]
[313995285,1707918709737,-500.0,0.00038082,2]
[313995286,1707918709747,-500.0,0.00038082,2]
[313995287,1707918709756,-2133.28,0.00038082,2]
[313995288,1707918709766,-749.2,0.00038082,2]
[313995289,1707918709775,-500.0,0.00038082,2]
[313995290,1707918709785,-500.0,0.00038082,2]
[313995291,1707918709794,-612.19,0.00038082,2]
[313995292,1707918709803,-3984.48,0.00038082,2]
[313995293,1707918709812,-500.0,0.00038082,2]
[313995294,1707918709821,-3434.86,0.00038082,2]
[313995295,1707918709830,-2229.52,0.00038082,2]
[313995296,1707918709840,-1036.88,0.00038082,2]
[313995297,1707918709849,-667.56,0.00038082,2]
[313995298,1707918709859,-500.0,0.00038082,2]
[313995299,1707918709868,-830.29,0.00038082,2]
[313995300,1707918709878,-804.93,0.00038082,2]
[313995301,1707918709887,-879.15,0.00038082,2]
[313995302,1707918709896,-1523.47,0.00038082,2]
[313995303,1707918709905,-500.0,0.00038082,2]
[313995304,1707918709915,-500.0,0.00038082,2]
[313995305,1707918709924,-857.92,0.00038082,2]
[313995306,1707918709933,-1018.09564847,0.00038082,7]
[313995307,1707918709943,-2172.7,0.00038082,2]
[313995308,1707918709952,-1039.51,0.00038082,2]
[313995309,1707918709961,-500.0,0.00038082,2]
[313995310,1707918709971,-665.95,0.00038082,2]
[313995311,1707918709981,-659.78,0.00038082,2]
[313995312,1707918709990,-882.28,0.00038082,2]
[313995313,1707918709999,-915.81,0.00038082,2]
[313995314,1707918710009,-500.0,0.00038082,2]
[313995315,1707918710018,-3477.6,0.00038082,2]
[313995316,1707918710028,-522.05,0.00038082,2]
[313995317,1707918710038,-1097.28,0.00038082,2]
[313995318,1707918710048,-628.97,0.00038082,2]
[313995319,1707918710058,-1305.65,0.00038082,2]
[313995320,1707918710067,-1091.63,0.00038082,2]
[313995321,1707918710077,-6315.2,0.00038082,2]
[313995322,1707918710087,-532.14,0.00038082,2]
[313995323,1707918710097,-605.23,0.00038082,2]
[313995324,1707918710107,-500.0,0.00038082,2]
[313995325,1707918710117,-606.87897962,0.00038082,2]
[313995326,1707918710127,-575.46,0.00038082,2]
[313995327,1707918710138,-500.0,0.00038082,2]
[313995328,1707918710148,-500.0,0.00038082,2]
[313995329,1707918710158,-500.0,0.00038082,2]
[313995330,1707918710169,-500.0,0.00038082,2]
[313995331,1707918710179,-1990.75,0.00038082,2]
[313995332,1707918710189,-616.34,0.00038082,2]
[313995333,1707918710200,-3516.5,0.00038082,2]
[313995334,1707918710210,-335.12731488,0.00038082,2]
[313995335,1707918710220,-910.68,0.00038082,2]
[313995336,1707918710230,-1503.66,0.00038082,2]
[313995337,1707918710240,-598.30216933,0.00038082,2]
[313995338,1707918710250,-1353.58,0.00038082,2]
[313995339,1707918710260,-642.25,0.00038082,2]
[313995340,1707918710270,-14206.3,0.00038082,2]
[313995341,1707918710281,-1094.31,0.00038082,2]
[313995342,1707918710291,-500.0,0.00038082,2]
[313995343,1707918710301,-504.39,0.00038082,2]
[313995344,1707918710311,-4735.51,0.00038082,2]
[313995345,1707918710321,-590.2,0.00038082,2]
[313995346,1707918710331,-15808.04,0.00038082,2]
[313995347,1707918710340,-521.77,0.00038082,2]
[313995348,1707918710350,-500.0,0.00038082,2]
[313995349,1707918710360,-609.6,0.00038082,2]
[313995350,1707918710370,-1215.11,0.00038082,2]
[313995351,1707918710380,-1135.44,0.00038082,2]
[313995352,1707918710390,-952.28,0.00038082,2]
[313995353,1707918710400,-500.0,0.00038082,2]